fUSD/lending_fUSD_20250906
["ID","MTS","AMOUNT","RATE_DAILY","PERIOD"]
[383789314,1757116824853,-156.96,0.00029152,2]
[383789315,1757116859726,-196.0,0.00038,120]
[383789316,1757116859759,-271.26274121,0.00038187,15]
[383789317,1757116859793,-308.03212383,0.00038187,7]
[383789318,1757116859823,-187.73385217,0.00038187,7]
[383789319,1757116859853,-500.0,0.00038187,15]
[383789320,1757116859886,-500.0,0.00038187,15]
[383789321,1757116859916,-227.21021985,0.00038187,15]
[383789322,1757116877716,-1000.0,0.00038188,60]
[383789323,1757116877748,-500000.0,0.00038188,2]
[383789325,1757117271874,-500.0,0.00033005,7]
[383789326,1757117271899,-500.0,0.00035805,7]
[383789327,1757117271926,-500.0,0.00035933,7]
[383789328,1757117327377,150.0,0.00022,2]
[383789329,1757117327756,150.0,0.0002318,2]
[383789330,1757117328174,150.0,0.0002437,2]
[383789331,1757117328551,150.0,0.0002555,2]
[383789332,1757117328963,150.0,0.0002673,2]
[383789333,1757117329384,150.0,0.0002792,2]
[383789334,1757117329771,150.0,0.000291,2]
[383789335,1757117346180,-150.0,0.0003029,2]
[383789336,1757117346202,-150.0,0.0003147,2]
[383789337,1757117346224,-150.0,0.0003265,2]
[383789338,1757117346245,-150.0,0.0003384,2]
[383789339,1757117346268,-150.0,0.0003502,2]
[383789340,1757117346289,-150.0,0.000362,2]
[383789341,1757117346310,-150.0,0.0003739,2]
[383789342,1757117346337,-186.0,0.00038,120]
[383789343,1757117346360,-167.0,0.00038,120]
[383789344,1757117346382,-155.06,0.00038356,2]
[383789345,1757117346405,-150.0,0.0003857,2]
[383789346,1757117346427,-169.59,0.00039723,2]
[383789347,1757117346448,-150.0,0.0003976,2]
[383789348,1757117346469,-500.0,0.00040748,30]
[383789349,1757117346490,-150.0,0.0004094,2]
[383789350,1757117346513,-150.0,0.0004212,2]
[383789351,1757117346535,-300.0,0.00043,30]
[383789352,1757117346557,-150.0,0.0004331,2]
[383789353,1757117346582,-156.96,0.00043728,2]
[383789354,1757117346603,-500.0,0.00044023,30]
[383789355,1757117346625,-201.36042112,0.0004446,2]
[383789356,1757117346647,-150.0,0.0004449,2]
[383789357,1757117346670,-150.0,0.0004567,2]
[383789358,1757117346693,-150.0,0.0004686,2]
[383789359,1757117346718,-500.0,0.00049623,30]
[383789360,1757117346739,-500.0,0.0004994,30]
[383789361,1757117346763,-650.0,0.00054,2]
[383789362,1757117346788,-500.0,0.0005701,120]
[383789363,1757117346813,-156.96,0.00058304,2]
[383789364,1757117346833,-500.0,0.00058412,15]
[383789365,1757117346854,-500.0,0.00058628,120]
[383789366,1757117346877,-160.0,0.00058786,7]
[383789367,1757117346900,-181.481,0.00058911,117]
[383789368,1757117346922,-1200.0,0.0005892,10]
[383789369,1757117346943,-1000.0,0.0005896,15]
[383789370,1757117346964,-500.0,0.00058973,15]
[383789371,1757117346989,-510.24963335,0.00058973,15]
[383789372,1757117347012,-400.0,0.00059121,120]
[383789373,1757117347034,-400.0,0.00059121,5]
[383789374,1757117347055,-376.78298634,0.00059121,120]
[383789375,1757117347078,-168.0,0.00059339,2]
[383789376,1757117347099,-400.0,0.00059395,120]
[383789377,1757117347120,-400.0,0.00059395,5]
[383789378,1757117347140,-533.0,0.000595,30]
[383789379,1757117347161,-1367.67923516,0.00059508,15]
[383789380,1757117347182,-1000.0,0.00059521,15]
[383789381,1757117347204,-168.0,0.00059544,2]
[383789382,1757117347225,-500.0,0.00059552,15]
[383789383,1757117347247,-607.92,0.00059626,30]
[383789384,1757117347270,-157.409344,0.00059669,120]
[383789385,1757117347292,-400.0,0.00059669,5]
[383789386,1757117347314,-400.0,0.00059943,5]
[383789387,1757117347335,-400.0,0.00059999,120]
[383789388,1757117347355,-400.0,0.00059999,120]
[383789389,1757117347377,-400.0,0.00059999,120]
[383789390,1757117347398,-400.0,0.00059999,120]
[383789391,1757117347420,-400.0,0.00059999,120]
[383789392,1757117347442,-400.0,0.00059999,120]
[383789393,1757117347464,-400.0,0.00059999,120]
[383789394,1757117347485,-400.0,0.00059999,60]
[383789395,1757117347506,-400.0,0.00059999,120]
[383789396,1757117347528,-400.0,0.00059999,120]
[383789397,1757117347550,-400.0,0.00059999,120]
[383789398,1757117347571,-400.0,0.00059999,120]
[383789399,1757117347593,-400.0,0.00059999,120]
[383789400,1757117347614,-400.0,0.00059999,120]
[383789401,1757117347635,-339.12762374,0.00059999,120]
[383789402,1757117347656,-400.0,0.00059999,120]
[383789403,1757117347678,-400.0,0.00059999,120]
[383789404,1757117347699,-186.14,0.00059999,120]
[383789405,1757117347720,-2083.0529531,0.0006,120]
[383789406,1757117347743,-1500.0,0.00060068,15]
[383789407,1757117347764,-1000.0,0.000601,15]
[383789408,1757117347941,-400.0,0.00060216,5]
[383789409,1757117347971,-400.0,0.0006049,5]
[383789410,1757117347994,-1826.19604387,0.00060616,15]
[383789411,1757117348016,-400.0,0.00060764,5]
[383789412,1757117348037,-1905.38723932,0.00061028,2]
[383789413,1757117348066,-6593.60623387,0.00061028,2]
[383789414,1757117355105,-150.0,0.00059999,120]
[383789415,1757117355127,-11269.58973063,0.00061028,2]
[383789416,1757117355149,-538.32,0.00061038,5]
[383789417,1757117355170,-527.93825685,0.00061073,10]
[383789418,1757117355191,-500.0,0.00061171,15]
[383789419,1757117355212,-250.0,0.0006131,120]
[383789420,1757117355233,-594.05,0.00061369,30]
[383789421,1757117355254,-457.75203633,0.00061648,15]
[383789422,1757117355275,-1000.0,0.00061719,15]
[383789423,1757117355295,-500.0,0.00062083,15]
[383789424,1757117355316,-500.0,0.00062083,15]
[383789425,1757117355336,-395.68639105,0.00062083,14]
[383789426,1757117355358,-500.0,0.00062083,10]
[383789427,1757117355379,-1500.0,0.00062266,15]
[383789428,1757117355402,-500.0,0.000623,120]
[383789429,1757117355428,-1001.34,0.00062404,30]
[383789430,1757117355452,-168.0,0.00062593,2]
[383789431,1757117355474,-1014.44561698,0.00062631,15]
[383789432,1757117355496,-1000.0,0.00062631,15]
[383789433,1757117355517,-1002.23364817,0.00062631,10]
[383789434,1757117355540,-155.06,0.00063014,2]
[383789435,1757117355561,-1500.0,0.00063178,15]
[383789436,1757117355583,-300.61630596,0.00063726,15]
[383789437,1757117355604,-150.0,0.00064169,30]
[383789438,1757117355627,-150.0,0.00064181,30]
[383789439,1757117355648,-150.0,0.00064301,30]
[383789440,1757117355669,-150.0,0.00064364,30]
[383789441,1757117355690,-150.0,0.00064385,30]
[383789442,1757117355711,-150.0,0.00064413,30]
[383789443,1757117355733,-150.0,0.00064538,30]
[383789444,1757117355753,-150.0,0.00064589,30]
[383789445,1757117355777,-189.88391885,0.00064606,120]
[383789446,1757117355799,-500.0,0.00064607,120]
[383789447,1757117355821,-150.0,0.00064654,30]
[383789448,1757117355843,-150.01,0.00064752,30]
[383789449,1757117355867,-150.0,0.00064866,30]
[383789450,1757117355894,-150.0,0.00064875,30]
[383789451,1757117355917,-533.27708554,0.000649,30]
[383789452,1757117355938,-150.0,0.00064917,30]
[383789453,1757117355959,-150.0,0.00064961,30]
[383789454,1757117355980,-400.0,0.00067799,120]
[383789455,1757117356002,-400.0,0.00067799,120]
[383789456,1757117356024,-400.0,0.00067799,120]
[383789457,1757117356046,-400.0,0.00067799,120]
[383789458,1757117356070,-415.63,0.00067799,120]
[383789459,1757117356093,-400.0,0.00067799,120]
[383789460,1757117356114,-400.0,0.00067799,120]
[383789461,1757117356139,-1000.0,0.000678,120]
[383789462,1757117356161,-603.26,0.00068071,30]
[383789463,1757117356182,-415.81,0.00068073,120]
[383789464,1757117356204,-186.0,0.000685,120]
[383789465,1757117356226,-167.0,0.000685,120]
[383789466,1757117356249,-196.35202683,0.00068582,120]
[383789467,1757117356271,-1000.0,0.000699,120]
[383789468,1757117356292,-248.0,0.00071178,2]
[383789469,1757117356315,-150.0,0.00072912,120]
[383789470,1757117356338,-313.24,0.00073882,2]
[383789471,1757117356360,-2000.0,0.000745,120]
[383789472,1757117356382,-313.24,0.00077576,2]
[383789473,1757117356403,-800.0,0.0007825,120]
[383789474,1757117356424,-1000.0,0.00079,120]
[383789475,1757117356445,-4188.0,0.0008,60]
[383789476,1757117356467,-1000.0,0.0008,120]
[383789477,1757117356488,-500.00000099,0.0008,120]
[383789478,1757117356510,-313.24,0.0008127,2]
[383789479,1757117356531,-400.0,0.00081999,120]
[383789480,1757117356552,-350.09391468,0.00081999,120]
[383789481,1757117356573,-400.0,0.00081999,120]
[383789482,1757117356595,-400.0,0.00081999,120]
[383789483,1757117356615,-254.04223422,0.00081999,120]
[383789484,1757117356637,-180.83811292,0.00081999,120]
[383789485,1757117359148,-219.16188708,0.00081999,120]
[383789486,1757117359170,-199.0,0.00081999,45]
[383789487,1757117359193,-309.97576772,0.00081999,2]
[383789488,1757117359215,-400.0,0.00081999,120]
[383789489,1757117359236,-252.42113808,0.00081999,120]
[383789490,1757117359258,-1000.0,0.00082,120]
[383789491,1757117359280,-199.0,0.00082684,47]
[383789492,1757117359301,-1000.0,0.00083,120]
[383789493,1757117359322,-276.0,0.000831,120]
[383789494,1757117359343,-201.58,0.00083369,49]
[383789495,1757117359364,-500.0,0.00083974,120]
[383789496,1757117359385,-1000.0,0.00084,120]
[383789497,1757117359405,-7961.0030151,0.000845,120]
[383789498,1757117359427,-150.0,0.00084944,120]
[383789499,1757117359449,-313.24,0.00084964,120]
[383789500,1757117359471,-2000.0,0.00085,120]
[383789501,1757117359491,-500.0,0.00085325,60]
[383789502,1757117359512,-186.36379049,0.0008539,2]
[383789503,1757117359534,-2000.0,0.00086,120]
[383789504,1757117359555,-2000.0,0.00087,120]
[383789505,1757117359576,-501.23057989,0.00087275,7]
[383789506,1757117359598,-500.0,0.00087275,14]
[383789507,1757117359620,-500.8023708,0.00087288,14]
[383789508,1757117359645,-501.10568143,0.00087461,60]
[383789509,1757117359666,-538.1762379,0.00087461,60]
[383789510,1757117359687,-500.5441442,0.00087532,14]
[383789511,1757117359706,-500.0,0.00087532,14]
[383789512,1757117359724,-500.0,0.00087532,60]
[383789513,1757117359745,-155.06,0.00087671,120]
[383789514,1757117359765,-2000.0,0.00088,120]
[383789515,1757117359788,-500.0,0.00088026,60]
[383789516,1757117359808,-500.0,0.00088026,60]
[383789517,1757117359828,-276.89308457,0.00088026,60]
[383789518,1757117359848,-500.0,0.00088026,60]
[383789519,1757117359871,-1352.90246274,0.00088296,120]
[383789520,1757117364111,-400.0,0.00067799,120]
[383789521,1757117364132,-400.0,0.00068073,120]
[383789522,1757117364153,-13990.42008917,0.00088296,120]
[383789523,1757117364174,-313.24,0.00088658,120]
[383789524,1757117364196,-150.0,0.00088759,120]
[383789525,1757117364216,-44218.13873083,0.000888,120]
[383789526,1757117398913,154.38,0.00013699,2]
[383789536,1757117431672,-400.0,0.00067799,120]
[383789537,1757117431683,-217.41636467,0.00068073,120]
[383789538,1757117431695,-184.26388923,0.00068073,120]
[383789539,1757117431705,-154.38,0.00075342,120]
[383789540,1757117431715,-500.38267159,0.00087275,14]
[383789541,1757117431725,-500.82177419,0.00087275,14]
[383789542,1757117431734,-500.0,0.00087275,30]
[383789543,1757117431744,-156.00799751,0.00087275,20]
[383789544,1757117431754,-200.0,0.00088799,120]
[383789545,1757117431764,-207.4,0.00088799,120]
[383789546,1757117431774,-500.0,0.00088799,120]
[383789547,1757117431783,-52.61456902,0.00088799,120]
[383789548,1757117431796,-162.45923098,0.00088799,120]
[383789549,1757117431807,-223.0315306,0.00088799,120]
[383789550,1757117431816,-231.28369723,0.00088799,120]
[383789551,1757117431826,-239.84119403,0.00088799,120]
[383789552,1757117431835,-248.71531821,0.00088799,120]
[383789553,1757117431846,-257.91778498,0.00088799,120]
[383789554,1757117431855,-267.46074303,0.00088799,120]
[383789555,1757117431865,-277.35679052,0.00088799,120]
[383789556,1757117431874,-287.61899177,0.00088799,120]
[383789557,1757117431884,-324.30224927,0.00088799,120]
[383789558,1757117431895,-415.88115814,0.000888,120]
[383789559,1757117431908,-5365.98011103,0.000888,120]
[383789560,1757117431918,-2000.0,0.00089,120]
[383789561,1757117431927,-258.71837037,0.00089329,120]
[383789562,1757117431937,-21023.39590484,0.0008933,120]
[383789563,1757117431948,-300.0,0.0008933,120]
[383789564,1757117431959,-2091.27211635,0.0008933,120]
[383789565,1757117431971,-9500.70554288,0.0008933,120]
[383789566,1757117431983,-16243.08280282,0.0008933,120]
[383789567,1757117431994,-609.5259571,0.0008933,120]
[383789569,1757117432006,-232.01767601,0.0008933,120]
[383789571,1757117432015,-400.0,0.00089999,120]
[383789574,1757117432030,-400.0,0.00089999,120]
[383789576,1757117432039,-303.73978563,0.00089999,120]
[383789578,1757117432049,-400.0,0.00089999,120]
[383789579,1757117432058,-400.0,0.00089999,14]
[383789580,1757117432068,-255.51310886,0.00089999,120]
[383789581,1757117432078,-400.0,0.00089999,120]
[383789582,1757117432087,-400.0,0.00089999,120]
[383789584,1757117432096,-964.70507073,0.0009,120]
[383789585,1757117432108,-2305.68274974,0.0009,120]
[383789586,1757117432119,-1229.61217953,0.0009,120]
[383789587,1757117432129,-869.49379855,0.0009,120]
[383789588,1757117432142,-586.52799764,0.0009,120]
[383789589,1757117432153,-543.97820381,0.0009,120]
[383789590,1757117432163,-400.0,0.00090273,120]
[383789591,1757117432172,-400.0,0.00090273,120]
[383789592,1757117432182,-199.79708067,0.00090273,120]
[383789593,1757117432191,-400.0,0.00090273,14]
[383789594,1757117432201,-400.0,0.00090273,120]
[383789595,1757117432210,-400.0,0.00090273,120]
[383789596,1757117432220,-279.486948,0.00090547,120]
[383789597,1757117432230,-400.0,0.00090547,120]
[383789598,1757117432240,-400.0,0.00090547,14]
[383789599,1757117432250,-315.05551837,0.00090547,120]
[383789600,1757117432261,-84.94448163,0.00090547,120]
[383789601,1757117432272,-400.0,0.00090547,120]
[383789602,1757117432281,-400.0,0.00090821,120]
[383789603,1757117432291,-400.0,0.00090821,14]
[383789604,1757117432301,-46.47817108,0.00090821,120]
[383789605,1757117432313,-353.52182892,0.00090821,120]
[383789606,1757117432323,-400.0,0.00090821,120]
[383789607,1757117432333,-2000.0,0.00091,120]
[383789608,1757117432344,-400.0,0.00091095,120]
[383789609,1757117432354,-400.0,0.00091095,14]
[383789610,1757117432364,-400.0,0.00091095,120]
[383789611,1757117432374,-400.0,0.00091095,120]
[383789612,1757117432384,-400.0,0.00091369,120]
[383789613,1757117432394,-400.0,0.00091369,14]
[383789614,1757117432403,-400.0,0.00091369,120]
[383789615,1757117432413,-257.93147333,0.00091369,120]
[383789616,1757117432423,-400.0,0.00091643,120]
[383789617,1757117432433,-400.0,0.00091643,14]
[383789618,1757117432443,-400.0,0.00091643,120]
[383789619,1757117432453,-400.0,0.00091917,120]
[383789620,1757117432462,-400.0,0.00091917,120]
[383789621,1757117432472,-2000.0,0.00092,120]
[383789622,1757117432482,-400.0,0.00092191,120]
[383789623,1757117432492,-400.0,0.00092191,120]
[383789624,1757117432502,-190.99,0.00092465,120]
[383789625,1757117432512,-400.0,0.00092465,120]
[383789626,1757117432522,-400.0,0.00092739,120]
[383789627,1757117432531,-2000.0,0.00093,120]
[383789628,1757117432541,-422.37,0.00093013,120]
[383789629,1757117432551,-152.0,0.00093345,3]
[383789630,1757117432560,-50000.0,0.000936,120]
[383789631,1757117432569,-185.085901,0.00093773,28]
[383789632,1757117432579,-2000.0,0.00094,120]
[383789633,1757117432588,-545.05314189,0.0009419,15]
[383789634,1757117432598,-2286.43047438,0.00094212,8]
[383789636,1757117432607,-21889.5666096,0.00094222,14]
[383789637,1757117432617,-3429.64571157,0.0009429,8]
[383789638,1757117432626,-2505.0,0.000943,120]
[383789639,1757117432636,-2505.0,0.000943,120]
[383789640,1757117432646,-2505.0,0.000943,120]
[383789641,1757117432655,-2505.0,0.000943,120]
[383789642,1757117432669,-2505.0,0.000943,120]
[383789643,1757117432678,-2505.0,0.000943,120]
[383789644,1757117432688,-2505.0,0.000943,120]
[383789645,1757117432697,-2505.0,0.000943,120]
[383789646,1757117432707,-2505.0,0.000943,120]
[383789647,1757117432716,-2505.0,0.000943,120]
[383789648,1757117432726,-1172.74,0.00094476,120]
[383789649,1757117432736,-785.2121424,0.00094781,15]
[383789650,1757117432745,-1143.21523719,0.00094859,8]
[383789651,1757117432755,-2851.2009778,0.00094869,66]
[383789652,1757117432765,-9145.72189752,0.0009488,8]
[383789653,1757117432775,-5877.58437066,0.0009489,120]
[383789654,1757117432787,-762.49139993,0.0009489,120]
[383789655,1757117437508,-943.03761527,0.0009489,120]
[383789660,1757117437725,-34661.78763947,0.0009489,120]
[383789661,1757117437739,-1175.73599446,0.0009489,120]
[383789662,1757117437752,-602.44375258,0.0009489,120]
[383789663,1757117437765,-2756.60492909,0.0009489,120]
[383789664,1757117437777,-1106.0,0.0009489,120]
[383789665,1757117437799,-356.57621986,0.0009489,120]
[383789666,1757117437881,-278.93714762,0.0009489,120]
[383789872,1757117440069,-7529.85268005,0.0009489,120]
[383790441,1757117445869,-1000.0,0.00085,120]
[383790443,1757117445879,-899.03096834,0.0009489,120]
[383790452,1757117445962,-1378.088156,0.0009489,120]
[383790455,1757117445975,-654.04223422,0.0009489,120]
[383790464,1757117446059,-8456.77396309,0.0009489,120]
[383790466,1757117446069,-5000.0,0.0009495,120]
[383790468,1757117446079,-9145.72189752,0.0009499,8]
[383790470,1757117446090,-2000.0,0.00095,120]
[383790472,1757117446099,-1000.0,0.00095,120]
[383790474,1757117446109,-66800.975561,0.00095,120]
[383790476,1757117446122,-5226.03291761,0.00095,120]
[383790478,1757117446134,-23893.65608215,0.00095,120]
[383790480,1757117446147,-591.600157,0.00095,120]
[383790483,1757117446159,-1270.66624031,0.00095,120]
[383790485,1757117446171,-3636.17142268,0.00095,120]
[383790487,1757117446180,-701.47877735,0.0009505,120]
[383790977,1757117451267,1164.09525596,0.0003,120]
[383790981,1757117451300,253835.90474404,0.0003,120]
[383792180,1757117727288,50000.0,0.0003,2]
[383792181,1757117727315,7048.45827243,0.0003,2]
[383792182,1757117811223,150.0,0.000384,2]
[383792183,1757117848096,150.0,0.000265,2]
[383792184,1757117848458,230.0,0.0002768,2]
[383792229,1757118001128,150.0,0.000384,2]
[383792230,1757118047332,499.98,0.00035616,60]
[383792231,1757118047617,300.02,0.00036438,60]
[383792232,1757118191166,150.0,0.000384,2]
[383792234,1757118309068,7350.0,0.0002,2]
[383792235,1757118309096,41471.54172757,0.0002,2]
[383792236,1757118309123,50000.0,0.0002,2]
[383792237,1757118309151,50000.0,0.0002,2]
[383792238,1757118309179,25208.92981552,0.0002,2]
[383792239,1757118310980,1624.14158933,0.000264,2]
[383792246,1757118348010,153.79,0.00013699,2]
[383792248,1757118448500,500.0,0.00035196,7]
[383792249,1757118455105,-500.0,0.00036225,7]
[383792250,1757118455131,-150.0,0.000384,2]
[383792251,1757118456247,21600.0,0.00018,2]
[383792252,1757118477232,27750.0,0.0002,2]
[383792253,1757118477257,50000.0,0.0002,2]
[383792254,1757118477281,50000.0,0.0002,2]
[383792255,1757118477306,50000.0,0.0002,2]
[383792256,1757118477331,22513.13859515,0.0002,2]
[383792257,1757118477356,50000.0,0.0002,2]
[383792258,1757118477380,50000.0,0.0002,2]
[383792259,1757118477404,45016.72433296,0.0002,2]
[383792260,1757118480563,-50000.0,0.00038184,30]
[383792261,1757118481459,-50000.0,0.00038184,30]
[383792262,1757118482365,-50000.0,0.00038184,30]
[383792263,1757118483177,-50000.0,0.00038184,30]
[383792264,1757118484082,-50000.0,0.00038184,30]
[383792265,1757118487073,-50000.0,0.00038184,30]
[383792266,1757118487663,-50000.0,0.00038184,30]
[383792267,1757118488269,-50000.0,0.00038184,30]
[383792268,1757118488935,-50000.0,0.00038184,30]
[383792269,1757118489591,-50000.0,0.00038184,30]
[383792271,1757118506635,399.999999,0.0003,2]
[383792272,1757118548071,-171.0,0.00038,120]
[383792273,1757118548092,-25.0,0.00038,120]
[383792274,1757118548120,-164.0,0.00038,120]
[383792275,1757118548140,-20.2858346,0.000381,2]
[383792276,1757118554087,-676.71734791,0.000381,2]
[383792277,1757118554110,-421.17707357,0.00038173,5]
[383792278,1757118554139,-91.54167252,0.00038183,2]
[383792279,1757118560077,-229.64261751,0.00038183,2]
[383792280,1757118560098,-227.52316191,0.00038183,15]
[383792281,1757118560120,-186.55581482,0.00038183,15]
[383792282,1757118560140,-46.04561787,0.00038184,4]
[383792283,1757118566128,-200.0,0.000376,13]
[383792284,1757118566149,-500.0,0.000377,13]
[383792285,1757118566170,-700.0,0.000378,13]
[383792286,1757118566190,-166.79174086,0.00038184,4]
[383792287,1757118566211,-4994.87,0.000382,14]
[383792288,1757118566231,-1518.54,0.000382,2]
[383792289,1757118566252,-2661.12091266,0.000389,11]
[383792290,1757118566271,-8093.42527317,0.00039,120]
[383792291,1757118566289,-2118.85343416,0.0004,120]
[383792292,1757118566312,-3010.69135387,0.0004,120]
[383792293,1757118566335,-157.12,0.00040742,2]
[383792294,1757118566358,-1678.85559209,0.00042,2]
[383792295,1757118566377,-195.0,0.00042003,120]
[383792296,1757118566398,-300.0,0.00042003,120]
[383792297,1757118566417,-250.0,0.00042003,120]
[383792298,1757118566445,-300.0,0.00042003,120]
[383792299,1757118566470,-1347.3240085,0.0004201,2]
[383792300,1757118566492,-3600.0,0.000422,2]
[383792301,1757118566512,-982.60555689,0.0004282,2]
[383792302,1757118566534,-22142.87964715,0.00043,120]
[383792303,1757118566557,-127877.49923637,0.00043,120]
[383792304,1757118566577,-9999.99,0.00043,2]
[383792305,1757118566598,-1572.63,0.00043,2]
[383792306,1757118566622,-2462.05,0.00043,2]
[383792307,1757118566644,-999.99,0.00043,2]
[383792308,1757118566665,-524.62591775,0.00043473,10]
[383792309,1757118566688,-63725.19472653,0.000435,120]
[383792310,1757118569097,-1000.0,0.000379,13]
[383792311,1757118569120,-2005.30236852,0.00038184,4]
[383792312,1757118574074,-8142.355774,0.00038184,4]
[383792313,1757118583877,206.11641776,0.000249,2]
[383792334,1757118631759,-162.0,0.00038,120]
[383792335,1757118631771,-580.8359854,0.00038084,2]
[383792336,1757118631781,-156.08587707,0.00038084,2]
[383792337,1757118631792,-209.16197214,0.00038173,5]
[383792338,1757118631802,-492.58,0.00038174,2]
[383792339,1757118631811,-492.58,0.00038174,2]
[383792340,1757118631821,-151.45,0.00038174,2]
[383792341,1757118631832,-151.45,0.00038174,2]
[383792342,1757118631842,-151.45,0.00038174,2]
[383792343,1757118631855,-151.45,0.00038174,2]
[383792344,1757118631869,-151.45,0.00038174,2]
[383792345,1757118631884,-151.45,0.00038174,2]
[383792346,1757118631897,-151.45,0.00038174,2]
[383792347,1757118631909,-151.45,0.00038174,2]
[383792348,1757118631921,-151.45,0.00038174,2]
[383792349,1757118631934,-151.45,0.00038174,2]
[383792350,1757118631946,-151.45,0.00038174,2]
[383792351,1757118631957,-151.45,0.00038174,2]
[383792352,1757118631969,-151.45,0.00038174,2]
[383792353,1757118631981,-151.45,0.00038174,2]
[383792354,1757118631992,-151.45,0.00038174,2]
[383792355,1757118632003,-151.45,0.00038174,2]
[383792356,1757118632015,-116.18334356,0.00038174,2]
[383792357,1757118632035,-35.26665644,0.00038174,2]
[383792358,1757118632046,-151.45,0.00038174,2]
[383792359,1757118632057,-627.03415411,0.00038183,3]
[383792360,1757118632070,-972.96584589,0.00038183,3]
[383792361,1757118632081,-300.0,0.00038183,2]
[383792362,1757118632092,-400.0,0.00038184,10]
[383792365,1757118632103,-510.69201801,0.00038184,10]
[383792367,1757118632114,-70.36055593,0.00038184,10]
[383792369,1757118632129,-329.63944407,0.00038184,10]
[383792370,1757118632140,-199.39461856,0.00038184,10]
[383792371,1757118632155,-200.60538144,0.00038184,10]
[383792372,1757118632166,-400.0,0.00038184,10]
[383792373,1757118632178,-400.0,0.00038184,10]
[383792375,1757118632188,-400.0,0.00038184,10]
[383792378,1757118632199,-400.0,0.00038184,10]
[383792380,1757118632209,-400.0,0.00038184,10]
[383792381,1757118632220,-400.0,0.00038184,10]
[383792382,1757118632230,-400.0,0.00038184,10]
[383792383,1757118632241,-491.22999462,0.00038184,10]
[383792384,1757118632251,-755.18726593,0.00038184,4]
[383792385,1757118632263,-16636.87828112,0.00038184,4]
[383792386,1757118632274,-2731.6764344,0.00038184,4]
[383792388,1757118633070,-3447.50504421,0.00038184,4]
[383792389,1757118633082,-11033.0,0.00038184,4]
[383792390,1757118637653,-299.38574944,0.00038075,2]
[383792391,1757118637663,-400.0,0.00038184,10]
[383792392,1757118637675,-400.0,0.00038184,10]
[383792393,1757118637685,-400.0,0.00038184,10]
[383792394,1757118637696,-400.0,0.00038184,10]
[383792395,1757118637708,-400.0,0.00038184,10]
[383792396,1757118637721,-400.0,0.00038184,10]
[383792397,1757118637732,-400.0,0.00038184,10]
[383792398,1757118637743,-9151.55406329,0.00038184,4]
[383792399,1757118637753,-3425123.55081269,0.00038184,30]
[383792400,1757118637764,-150.0,0.00038184,75]
[383792401,1757118637774,-560.27,0.000382,14]
[383792402,1757118637785,-775.0,0.000382,30]
[383792403,1757118637795,-150.0,0.000384,2]
[383792404,1757118637807,-400.0,0.00038458,10]
[383792405,1757118637819,-400.0,0.00038458,10]
[383792406,1757118637831,-400.0,0.00038458,10]
[383792407,1757118637841,-400.0,0.00038458,10]
[383792408,1757118637852,-400.0,0.00038732,10]
[383792409,1757118637864,-400.0,0.00038732,10]
[383792410,1757118637874,-800.0,0.0004096,5]
[383792411,1757118637885,-150.0,0.0004238,120]